bitfinex/quotes_SOLUSD_20241107
["timestamp","ask_amount","ask_price","bid_price","bid_amount"]
[1730943473977,10.77166031,191.15,191.11,0.12549]
[1730943474771,10.77166031,191.15,191.09,0.12549]
[1730943474956,38.66240038,191.15,191.09,0.12549]
[1730943475153,10.77166031,191.15,191.09,0.12549]
[1730943475461,10.77166031,191.15,191.1,0.12549]
[1730943475765,10.77166031,191.15,191.1,28.01623007]
[1730943475965,10.77166031,191.15,191.12,0.12549]
[1730943476352,10.77166031,191.15,191.14,27.89074007]
[1730943476865,10.77166031,191.15,191.14,0.12549]
[1730943477272,10.77166031,191.15,191.12,27.89074007]
[1730943477643,10.77166031,191.15,191.13,0.12549]
[1730943478055,10.77166031,191.15,191.14,5.2317]
[1730943478548,38.66240038,191.15,191.14,5.2317]
[1730943479574,38.76240038,191.15,191.07,5.2336]
[1730943479746,27.89074007,191.11,191.07,5.2336]
[1730943479953,27.89074007,191.11,191.04,27.89074007]
[1730943480476,27.89074007,191.08,191.01,27.89074007]
[1730943480655,27.89074007,191.06,190.99,27.89074007]
[1730943481356,27.89074007,191.06,190.92,6.2022]
[1730943481357,27.89074007,191.04,190.97,27.89074007]
[1730943481873,15.8209,191.1,191.03,27.89074007]
[1730943482072,15.8209,191.1,191.05,0.12549]
[1730943482662,15.8209,191.1,191.04,27.89074007]
[1730943483949,10.77166031,191.15,191.06,27.89074007]
[1730943484153,27.89074007,191.14,191.07,27.89074007]
[1730943484379,10.77166031,191.15,191.09,27.89074007]
[1730943484678,10.77166031,191.15,191.1,0.12549]
[1730943485194,27.89074007,191.14,191.07,27.89074007]
[1730943485570,27.89074007,191.14,191.08,0.12549]
[1730943485776,38.66240038,191.15,191.08,0.12549]
[1730943486291,27.89074007,191.13,191.05,27.89074007]
[1730943486750,27.89074007,191.12,191.05,27.89074007]
[1730943486952,27.89074007,191.13,191.05,27.89074007]
[1730943487172,27.89074007,191.13,191.06,0.12549]
[1730943487360,10.77166031,191.15,191.07,27.89074007]
[1730943487564,27.89074007,191.13,191.05,27.89074007]
[1730943487873,27.89074007,191.13,191.06,0.12549]
[1730943488071,27.89074007,191.13,191.06,28.01623007]
[1730943488276,10.77166031,191.15,191.09,28.01623007]
[1730943488461,10.77166031,191.15,191.11,27.89074007]
[1730943488665,10.77166031,191.15,191.09,27.89074007]
[1730943488880,10.77166031,191.15,191.1,0.12549]
[1730943489357,10.77166031,191.15,191.09,0.12549]
[1730943489560,38.66240038,191.15,191.08,27.89074007]
[1730943490186,47.89074007,191.11,190.98,6.6962366]
[1730943490377,47.89074007,191.11,190.86,31.61]
[1730943490378,27.89074007,191.03,190.91,6.3341]
[1730943490558,27.89074007,191.0,190.93,27.89074007]
[1730943490753,6.0191,191.1,190.86,7.38107527]
[1730943490754,16.71491171,191.12,190.94,1.04715529]
[1730943490971,0.1,191.11,190.93,5.16442918]
[1730943491154,0.1,191.09,190.89,6.68287944]
[1730943491355,0.1,191.08,190.9,1.0468833]
[1730943491675,6.2533,191.05,190.88,5.11401807]
[1730943491857,27.89074007,191.01,190.94,27.89074007]
[1730943492058,27.89074007,191.02,190.95,27.89074007]
[1730943492278,27.89074007,191.02,190.95,28.54850462]
[1730943492707,27.89074007,191.04,190.97,27.89074007]
[1730943492976,6.2533,191.05,190.98,27.89074007]
[1730943493166,34.14404007,191.05,190.98,27.89074007]
[1730943493675,34.24404007,191.05,190.98,0.12549]
[1730943493975,27.89074007,191.04,190.97,27.89074007]
[1730943494275,6.1341,191.1,191.01,27.89074007]
[1730943494479,27.89074007,191.07,191.0,27.89074007]
[1730943494690,27.89074007,191.06,190.98,33.25233007]
[1730943494974,27.89074007,191.05,190.98,33.25233007]
[1730943495869,27.89074007,191.07,190.99,27.89074007]
[1730943496071,27.89074007,191.09,191.01,27.89074007]
[1730943496273,27.89074007,191.08,191.01,27.89074007]
[1730943496791,6.1341,191.1,191.03,0.12549]
[1730943496972,27.89074007,191.12,191.06,0.12549]
[1730943497565,27.89074007,191.12,191.05,27.89074007]
[1730943497789,27.89074007,191.12,191.04,27.89074007]
[1730943497976,27.89074007,191.12,191.05,0.12549]
[1730943498188,27.89074007,191.11,191.05,0.12549]
[1730943498364,27.89074007,191.1,191.02,27.89074007]
[1730943498570,27.89074007,191.1,191.03,0.12549]
[1730943499287,27.89074007,191.09,191.03,0.12549]
[1730943499489,27.89074007,191.08,191.01,27.89074007]
[1730943499790,27.89074007,191.08,191.02,0.12549]
[1730943499966,27.89074007,191.09,191.02,0.12549]
[1730943500692,27.89074007,191.07,191.02,5.235]
[1730943501067,27.89074007,191.05,191.02,5.235]
[1730943502479,27.89074007,191.05,190.98,27.89074007]
[1730943502480,27.89074007,191.04,190.97,27.89074007]
[1730943502680,27.89074007,191.05,190.98,27.89074007]
[1730943503168,27.89074007,191.05,190.99,0.12549]
[1730943503365,0.2,191.13,191.0,27.89074007]
[1730943503566,0.2,191.13,191.01,27.89074007]
[1730943503567,27.89074007,191.08,191.01,27.89074007]
[1730943503874,27.89074007,191.07,191.0,27.89074007]
[1730943504195,20.0,191.14,190.88,5.252]
[1730943504196,27.89074007,191.04,190.88,5.11401807]
[1730943504494,15.2031,191.05,190.98,27.89074007]
[1730943504682,15.2031,191.05,190.99,27.89074007]
[1730943505088,43.09384007,191.05,190.98,28.01623007]
[1730943505272,15.2031,191.05,190.99,27.89074007]
[1730943505477,15.2031,191.05,190.98,0.12549]
[1730943505478,15.2031,191.05,190.98,28.01623007]
[1730943505676,43.09384007,191.05,190.98,28.01623007]
[1730943505885,27.89074007,191.05,190.98,28.01623007]
[1730943506074,27.89074007,191.07,190.99,27.89074007]
[1730943506478,27.89074007,191.07,191.0,5.2356]
[1730943506987,27.89074007,191.05,191.0,5.2356]
[1730943508191,27.89074007,191.04,191.0,5.2356]
[1730943508413,27.89074007,191.06,190.99,27.89074007]
[1730943508772,27.99074007,191.05,190.98,27.89074007]
[1730943508983,27.89074007,191.05,190.98,27.89074007]
[1730943509223,27.89074007,191.07,190.99,51.66762407]
[1730943509372,27.89074007,191.06,190.99,51.66762407]
[1730943509688,27.89074007,191.05,190.99,23.776884]
[1730943509898,0.1,191.07,190.98,51.66762407]
[1730943510073,0.1,191.07,190.98,23.776884]
[1730943510277,27.89074007,191.05,190.98,51.66762407]
[1730943510673,27.89074007,191.04,190.98,23.776884]
[1730943511298,27.89074007,191.05,190.98,23.776884]
[1730943512293,27.89074007,191.03,190.96,27.89074007]
[1730943512596,27.89074007,191.02,190.95,27.89074007]
[1730943512808,27.89074007,191.03,190.96,27.89074007]
[1730943513173,27.89074007,191.05,190.98,27.89074007]
[1730943513388,27.89074007,191.05,190.98,0.12549]
[1730943513601,27.89074007,191.04,190.98,23.902374]
[1730943514193,27.89074007,191.05,190.98,23.776884]
[1730943514399,27.89074007,191.04,190.99,5.2358]
[1730943514582,27.89074007,191.04,191.0,23.776884]
[1730943514775,25.53506934,191.1,191.0,23.776884]
[1730943514776,27.89074007,191.05,191.0,23.776884]
[1730943516070,27.89074007,191.08,191.01,0.12549]
[1730943516275,27.89074007,191.08,191.01,28.01623007]
[1730943516494,27.89074007,191.09,191.02,33.12574007]
[1730943516702,15.3084,191.13,191.02,33.12574007]
[1730943516703,15.3084,191.13,191.03,23.776884]
[1730943516876,27.89074007,191.09,191.03,23.776884]
[1730943517074,27.89074007,191.08,191.03,23.776884]
[1730943517901,27.89074007,191.07,191.03,23.776884]
[1730943518080,27.89074007,191.07,191.02,5.235]
[1730943518081,27.89074007,191.04,191.02,5.235]
[1730943518279,27.89074007,191.03,191.02,5.235]
[1730943518584,34.42914007,191.06,190.99,0.12549]
[1730943518783,27.89074007,191.09,191.02,0.12549]
[1730943519500,27.89074007,191.1,191.03,23.902374]
[1730943519704,27.89074007,191.1,191.03,51.79311407]
[1730943520284,27.89074007,191.1,191.03,23.902374]
[1730943520507,27.89074007,191.09,191.03,23.902374]
[1730943520887,10.77166031,191.15,191.1,0.12549]
[1730943521201,10.77166031,191.15,191.14,23.902374]
[1730943521393,28.47834067,191.21,191.15,0.12549]
[1730943521394,27.89074007,191.2,191.15,0.12549]
[1730943522010,0.5876006,191.21,191.15,0.12549]
[1730943522214,27.89074007,191.19,191.14,23.776884]
[1730943522413,27.89074007,191.2,191.13,28.01623007]
[1730943522589,28.47834067,191.21,191.14,27.89074007]
[1730943522915,0.5876006,191.21,191.17,0.1]
[1730943523488,0.5876006,191.21,191.16,0.1]
[1730943523688,0.5876006,191.21,191.17,0.1]
[1730943523902,5.43705385,191.34,191.22,0.1]
[1730943524090,5.43705385,191.34,191.31,0.12549]
[1730943524303,27.89074007,191.34,191.22,6.3657]
[1730943524509,27.89074007,191.35,191.3,0.12549]
[1730943524813,27.89074007,191.35,191.29,27.89074007]
[1730943524814,27.89074007,191.33,191.26,27.89074007]
[1730943524992,27.89074007,191.32,191.26,27.89074007]
[1730943525189,0.5876006,191.4,191.31,27.89074007]
[1730943525388,0.5876006,191.4,191.34,27.89074007]
[1730943525592,28.47834067,191.4,191.33,27.89074007]
[1730943525891,28.47834067,191.4,191.34,23.776884]
[1730943526213,27.89074007,191.39,191.34,23.776884]
[1730943526391,28.47834067,191.4,191.34,23.776884]
[1730943527203,27.89074007,191.39,191.34,23.776884]
[1730943527517,28.47834067,191.4,191.36,23.776884]
[1730943528530,0.5876006,191.4,191.36,23.776884]
[1730943528702,0.5876006,191.4,191.35,23.902374]
[1730943528894,28.47834067,191.4,191.35,0.12549]
[1730943529514,0.5876006,191.4,191.35,0.12549]
[1730943530104,0.5876006,191.4,191.35,28.01623007]
[1730943530815,0.5876006,191.4,191.35,0.12549]
[1730943531626,0.5876006,191.4,191.35,28.01623007]
[1730943531823,0.5876006,191.4,191.37,0.12549]
[1730943532503,0.5876006,191.4,191.39,27.89074007]
[1730943532504,0.4622006,191.4,191.39,27.89074007]
[1730943532706,0.4622006,191.4,191.39,33.49132708]
[1730943532905,5.0,191.48,191.39,40.92864391]
[1730943533125,5.0,191.48,191.41,27.89074007]
[1730943533920,5.0,191.48,191.42,0.12549]
[1730943534125,5.0,191.48,191.38,27.89074007]
[1730943534126,27.89074007,191.46,191.38,27.89074007]
[1730943534331,32.89074007,191.48,191.39,27.89074007]
[1730943534528,5.0,191.48,191.41,27.89074007]
[1730943534830,27.89074007,191.46,191.34,23.776884]
[1730943535126,27.89074007,191.46,191.39,0.12549]
[1730943536103,27.89074007,191.44,191.36,27.89074007]
[1730943536304,27.89074007,191.43,191.36,27.89074007]
[1730943536627,27.89074007,191.41,191.33,27.89074007]
[1730943536797,10.3225,191.48,191.28,32.72813701]
[1730943536798,27.89074007,191.37,191.3,27.89074007]
[1730943536995,27.89074007,191.35,191.23,6.1293]
[1730943537218,27.89074007,191.35,191.27,27.89074007]
[1730943537499,27.89074007,191.33,191.27,0.12549]
[1730943537704,27.89074007,191.34,191.27,0.12549]
[1730943537901,27.89074007,191.29,191.22,48.79423207]
[1730943538204,27.89074007,191.31,191.23,27.89074007]
[1730943538426,27.89074007,191.31,191.24,27.89074007]
[1730943539301,27.89074007,191.32,191.24,27.89074007]
[1730943539723,0.2,191.35,191.25,18.3005]
[1730943539936,27.89074007,191.32,191.25,18.3005]
[1730943540238,27.89074007,191.34,191.27,0.12549]
[1730943540409,27.89074007,191.32,191.27,0.12549]
[1730943540804,27.89074007,191.32,191.26,0.12549]
[1730943541200,27.89074007,191.32,191.25,44.4442]
[1730943541918,27.89074007,191.3,191.25,44.4442]
[1730943542826,27.89074007,191.28,191.25,44.4442]
[1730943543125,27.89074007,191.26,191.25,18.3005]
[1730943543329,27.89074007,191.26,191.15,27.89074007]
[1730943543330,27.99074007,191.26,191.15,27.89074007]
[1730943543527,27.89074007,191.21,191.14,27.89074007]
[1730943543910,27.89074007,191.2,191.13,27.89074007]
[1730943544235,27.89074007,191.16,191.09,26.1645]
[1730943544411,27.89074007,191.14,191.07,34.41284007]
[1730943544734,27.89074007,191.18,191.11,27.89074007]
[1730943544932,21.7447,191.26,191.01,7.66836805]
[1730943544933,27.89074007,191.19,191.12,27.89074007]
[1730943545256,27.89074007,191.19,191.11,27.89074007]
[1730943545414,27.89074007,191.18,191.1,27.89074007]
[1730943545614,27.89074007,191.18,191.08,5.50597589]
[1730943545615,5.44296372,191.35,191.2,0.1]
[1730943545823,27.89074007,191.37,191.28,27.89074007]
[1730943546009,0.1,191.4,191.21,1.04517563]
[1730943546010,27.89074007,191.39,191.31,27.89074007]
[1730943546327,27.89074007,191.37,191.29,27.89074007]
[1730943546529,27.99074007,191.37,191.29,27.89074007]
[1730943546826,15.2085,191.34,191.27,27.89074007]
[1730943547027,27.89074007,191.31,191.23,27.89074007]
[1730943547212,27.89074007,191.29,191.21,27.89074007]
[1730943547528,15.2085,191.34,191.17,27.89074007]
[1730943547529,27.89074007,191.25,191.17,27.89074007]
[1730943548108,27.89074007,191.24,191.17,27.89074007]
[1730943548714,0.1,191.28,191.19,27.89074007]
[1730943548715,27.89074007,191.26,191.19,27.89074007]
[1730943548918,27.89074007,191.26,191.18,27.89074007]
[1730943549126,27.89074007,191.29,191.22,27.89074007]
[1730943550343,27.89074007,191.28,191.21,27.89074007]
[1730943550841,16.3686,191.39,191.26,27.89074007]
[1730943551018,16.3686,191.39,191.34,27.89074007]
[1730943552144,27.89074007,191.37,191.3,27.89074007]
[1730943552949,27.89074007,191.38,191.31,27.89074007]
[1730943553945,16.3686,191.39,191.32,27.89074007]
[1730943554239,44.25934007,191.39,191.22,20.22549]
[1730943554419,44.25934007,191.39,191.31,27.89074007]
[1730943554420,27.89074007,191.38,191.31,27.89074007]
[1730943554629,44.25934007,191.39,191.32,27.89074007]
[1730943555027,27.89074007,191.38,191.31,27.89074007]
[1730943555228,27.89074007,191.38,191.31,26.77175609]
[1730943555819,27.89074007,191.35,191.28,27.89074007]
[1730943556023,27.99074007,191.35,191.28,27.89074007]
[1730943556221,0.1,191.36,191.18,35.2903569]
[1730943556222,27.89074007,191.32,191.18,27.89074007]
[1730943556429,0.1,191.33,191.18,27.89074007]
[1730943557026,0.1,191.33,191.19,0.12549]
[1730943557223,0.1,191.35,191.18,27.89074007]
[1730943557532,27.99074007,191.32,191.25,27.89074007]
[1730943557744,27.89074007,191.32,191.25,22.89074007]
[1730943557937,27.89074007,191.31,191.24,27.89074007]
[1730943558256,27.99074007,191.31,191.24,27.89074007]
[1730943558443,0.1,191.3,191.24,27.89074007]
[1730943558636,0.1,191.34,191.27,27.89074007]
[1730943558836,27.99074007,191.33,191.26,27.89074007]
[1730943559041,27.89074007,191.33,191.26,27.89074007]
[1730943559349,27.89074007,191.36,191.29,27.89074007]
[1730943559648,27.99074007,191.35,191.28,27.89074007]
[1730943559957,27.89074007,191.34,191.27,27.89074007]
[1730943560125,27.99074007,191.34,191.27,27.89074007]
[1730943560328,27.99074007,191.34,191.26,27.89074007]
[1730943560753,27.89074007,191.33,191.26,27.89074007]
[1730943561059,27.99074007,191.34,191.26,27.89074007]
[1730943561242,27.89074007,191.33,191.26,27.89074007]
[1730943561642,27.89074007,191.32,191.25,27.89074007]
[1730943562144,27.89074007,191.31,191.24,27.89074007]
[1730943562536,50.70194007,191.29,191.22,27.89074007]
[1730943562734,27.89074007,191.24,191.16,27.89074007]
[1730943563038,0.1,191.27,191.07,27.89074007]
[1730943563039,0.1,191.26,191.19,27.89074007]
[1730943563243,26.9737825,191.47,191.07,27.89074007]
[1730943563244,6.2982,191.35,191.22,0.1]
[1730943563562,16.413,191.36,191.23,0.22549]
[1730943563735,6.2982,191.4,191.24,0.1]
[1730943563926,6.2982,191.4,191.25,0.1]
[1730943564331,6.2982,191.4,191.38,27.89074007]
[1730943564734,16.413,191.43,191.39,27.89074007]
[1730943565039,16.413,191.43,191.42,27.89074007]
[1730943566044,16.413,191.43,191.42,33.11484007]
[1730943566248,5.0,191.48,191.42,33.11484007]
[1730943566444,5.0,191.48,191.46,27.89074007]
[1730943566660,5.1,191.48,191.46,27.89074007]
[1730943566861,5.1,191.48,191.44,27.89074007]
[1730943567036,5.0,191.48,191.44,27.89074007]
[1730943567234,5.0,191.48,191.47,27.89074007]
[1730943567654,5.0,191.48,191.42,5.2241]
[1730943567857,5.0,191.48,191.47,27.89074007]
[1730943568541,5.0,191.48,191.33,20.0]
[1730943568747,5.0,191.48,191.47,27.89074007]
[1730943570753,5.0,191.48,191.36,0.1]
[1730943570959,5.0,191.48,191.47,27.89074007]
[1730943571748,5.0,191.48,191.34,0.12549]
[1730943571952,5.0,191.48,191.47,27.89074007]
[1730943573959,5.0,191.48,191.36,10.068718]
[1730943574167,5.0,191.48,191.47,27.89074007]
[1730943577045,5.0,191.48,191.36,0.32549]
[1730943577244,5.0,191.48,191.47,27.89074007]
[1730943577459,5.0,191.48,191.46,27.89074007]
[1730943577665,10.06871878,191.49,191.48,5.0]
[1730943578741,10.06871878,191.49,191.48,10.2224]
[1730943579155,10.06871878,191.49,191.48,5.0]
[1730943579863,10.16871878,191.49,191.48,5.0]
[1730943580062,38.05945885,191.49,191.48,5.0]
[1730943580369,53.46035885,191.49,191.48,5.0]
[1730943580565,0.2,191.48,191.44,5.2234]
[1730943580769,10.06871878,191.49,191.45,27.89074007]
[1730943581459,0.06871878,191.49,191.44,5.2234]
[1730943581658,0.06871878,191.49,191.44,33.11414007]
[1730943582168,0.06871878,191.49,191.46,27.89074007]
[1730943583071,0.06871878,191.49,191.47,5.2227]
[1730943584344,0.06871878,191.49,191.47,33.11344007]
[1730943584750,1.06871878,191.49,191.47,33.11344007]
[1730943585757,1.06871878,191.49,191.47,5.2227]
[1730943586164,1.06871878,191.49,191.46,27.89074007]
[1730943586165,1.06871878,191.49,191.45,27.89074007]
[1730943586355,1.06871878,191.49,191.47,27.89074007]
[1730943586879,1.06871878,191.49,191.46,27.89074007]
[1730943587473,1.06871878,191.49,191.47,27.89074007]
[1730943587659,1.06871878,191.49,191.44,27.89074007]
[1730943588057,1.06871878,191.49,191.33,0.1]
[1730943588058,6.2738,191.48,191.33,20.12549]
[1730943588262,34.16454007,191.48,191.41,27.89074007]
[1730943588464,6.2738,191.48,191.41,27.89074007]
[1730943588769,16.75181878,191.49,191.42,27.89074007]
[1730943589563,16.75181878,191.49,191.43,27.89074007]
[1730943590168,16.75181878,191.49,191.45,27.89074007]
[1730943590755,16.75181878,191.49,191.44,27.89074007]
[1730943591072,1.06871878,191.49,191.47,27.89074007]
[1730943591449,1.06871878,191.49,191.48,27.89074007]
[1730943593573,1.06871878,191.49,191.47,27.89074007]
[1730943593881,1.06871878,191.49,191.46,27.89074007]
[1730943594273,1.06871878,191.49,191.47,27.89074007]
[1730943594471,1.06871878,191.49,191.44,27.89074007]
[1730943595885,1.06871878,191.49,191.45,27.89074007]
[1730943596259,1.06871878,191.49,191.44,27.89074007]
[1730943597181,1.06871878,191.49,191.46,27.89074007]
[1730943597697,1.06871878,191.49,191.47,27.89074007]
[1730943597979,1.06871878,191.49,191.48,27.89074007]
[1730943598281,1.06871878,191.49,191.47,27.89074007]
[1730943598491,1.06871878,191.49,191.46,27.89074007]
[1730943599173,1.06871878,191.49,191.48,27.89074007]
[1730943599355,1.06871878,191.49,191.47,27.89074007]
[1730943599559,1.06871878,191.49,191.46,27.89074007]
[1730943599756,1.06871878,191.49,191.47,27.89074007]
[1730943599973,1.06871878,191.49,191.48,27.89074007]
[1730943600189,1.06871878,191.49,191.46,27.89074007]
[1730943603183,1.06871878,191.49,191.47,27.89074007]
[1730943603368,1.06871878,191.49,191.47,17.20941475]
[1730943603568,1.06871878,191.49,191.46,17.20941475]
[1730943604188,1.06871878,191.49,191.45,17.20941475]
[1730943604893,1.06871878,191.49,191.46,17.20941475]
[1730943605069,1.06871878,191.49,191.45,17.20941475]
[1730943605791,1.06871878,191.49,191.43,17.20941475]
[1730943605962,18.27813353,191.49,191.42,17.20941475]
[1730943606168,24.31763353,191.49,191.42,17.20941475]
[1730943606768,17.20941475,191.48,191.41,17.20941475]
[1730943607469,24.31763353,191.49,191.42,17.20941475]
[1730943607688,1.06871878,191.49,191.48,17.20941475]
[1730943609382,1.06871878,191.49,191.48,37.20941475]
[1730943609692,0.5876006,191.59,191.5,0.12549]
[1730943609868,17.79701535,191.59,191.5,17.20941475]
[1730943610068,17.20941475,191.57,191.5,17.20941475]
[1730943610268,17.79701535,191.59,191.5,17.20941475]
[1730943610589,0.5876006,191.59,191.52,17.20941475]
[1730943611374,0.5876006,191.59,191.54,17.20941475]
[1730943612372,0.5876006,191.59,191.58,43.50790475]
[1730943612570,0.85084034,191.67,191.6,0.1]
[1730943612773,0.85084034,191.67,191.66,17.20941475]
[1730943612971,0.85084034,191.67,191.59,40.864995]
[1730943613171,0.85084034,191.67,191.59,20.864995]
[1730943613472,17.20941475,191.63,191.46,6.273]
[1730943613667,17.20941475,191.62,191.55,17.20941475]
[1730943613872,17.20941475,191.61,191.54,17.20941475]
[1730943614290,17.20941475,191.63,191.55,17.20941475]
[1730943614508,17.20941475,191.6,191.53,17.20941475]
[1730943614799,17.20941475,191.61,191.54,17.20941475]
[1730943615182,6.4088,191.65,191.59,17.20941475]
[1730943615382,17.20941475,191.64,191.57,17.20941475]
[1730943615789,16.5734,191.66,191.59,17.20941475]
[1730943615990,33.78281475,191.66,191.59,17.20941475]
[1730943616201,0.85084034,191.67,191.6,17.20941475]
[1730943616380,0.85084034,191.67,191.66,17.20941475]
[1730943616585,0.85084034,191.67,191.65,17.20941475]
[1730943617075,0.85084034,191.67,191.63,17.20941475]
[1730943617699,0.85084034,191.67,191.62,17.20941475]
[1730943617899,18.06025509,191.67,191.6,17.20941475]
[1730943618495,0.85084034,191.67,191.61,17.20941475]
[1730943618697,0.85084034,191.67,191.64,17.20941475]
[1730943619080,0.85084034,191.67,191.66,17.20941475]
[1730943619277,0.85084034,191.67,191.58,20.0]
[1730943619477,0.85084034,191.67,191.62,17.20941475]
[1730943619677,0.85084034,191.67,191.64,17.20941475]
[1730943620473,0.85084034,191.67,191.63,17.20941475]
[1730943620674,0.85084034,191.67,191.66,17.20941475]
[1730943622184,0.85084034,191.67,191.59,0.12549]
[1730943622508,0.85084034,191.67,191.61,17.20941475]
[1730943622814,0.85084034,191.67,191.62,17.20941475]
[1730943623197,0.85084034,191.67,191.63,17.20941475]
[1730943623503,0.85084034,191.67,191.66,17.20941475]
[1730943624015,0.85084034,191.67,191.66,17.33490475]
[1730943624596,0.85084034,191.67,191.66,17.20941475]
[1730943625402,0.85084034,191.67,191.66,17.33490475]
[1730943625607,0.85084034,191.67,191.66,17.20941475]
[1730943628204,0.85084034,191.67,191.66,17.33490475]
[1730943629087,0.85084034,191.67,191.66,37.33490475]
[1730943629303,0.31750211,191.72,191.67,20.0]
[1730943629483,0.31750211,191.72,191.71,17.20941475]
[1730943632809,0.31750211,191.72,191.71,17.33490475]
[1730943632982,0.31750211,191.72,191.71,17.20941475]
[1730943633609,0.31750211,191.72,191.66,0.1]
[1730943633906,0.31750211,191.72,191.71,17.33490475]
[1730943634090,0.31750211,191.72,191.71,17.20941475]
[1730943636288,0.31750211,191.72,191.71,17.33490475]
[1730943636685,34.70761746,191.82,191.71,17.20941475]
[1730943636887,34.70761746,191.82,191.75,17.20941475]
[1730943637789,17.49820271,191.82,191.76,17.20941475]
[1730943638310,17.49820271,191.82,191.77,17.20941475]
[1730943638517,17.49820271,191.82,191.79,17.20941475]
[1730943639995,6.2648,191.87,191.82,17.20941475]
[1730943640709,17.20941475,191.86,191.79,17.20941475]
[1730943640893,17.20941475,191.85,191.78,17.20941475]
[1730943641097,17.20941475,191.86,191.8,17.20941475]
[1730943641489,17.20941475,191.86,191.79,17.20941475]
[1730943641699,17.20941475,191.84,191.77,17.20941475]
[1730943642207,17.20941475,191.84,191.64,1.27804476]
[1730943642208,33.38931475,191.82,191.66,0.1]
[1730943642528,17.20941475,191.81,191.75,17.20941475]
[1730943642686,17.20941475,191.81,191.72,17.20941475]
[1730943642687,17.20941475,191.79,191.72,17.20941475]
[1730943642890,16.1799,191.82,191.63,6.1936]
[1730943642891,16.1799,191.82,191.75,17.20941475]
[1730943643085,16.1799,191.82,191.76,17.20941475]
[1730943643310,16.1799,191.82,191.66,0.1]
[1730943643889,16.1799,191.82,191.67,0.1]
[1730943644091,16.2799,191.82,191.64,5.31]
[1730943644386,17.20941475,191.8,191.73,17.20941475]
[1730943644599,33.38931475,191.82,191.75,17.20941475]
[1730943644910,17.20941475,191.81,191.74,17.20941475]
[1730943645093,33.38931475,191.82,191.75,17.20941475]
[1730943645297,17.30941475,191.81,191.63,6.2936]
[1730943645511,17.20941475,191.81,191.74,17.20941475]
[1730943645708,17.20941475,191.81,191.75,17.20941475]
[1730943646013,33.38931475,191.82,191.75,17.20941475]
[1730943646699,16.1799,191.82,191.76,17.20941475]
[1730943647003,16.1799,191.82,191.66,0.12549]
[1730943647004,16.1799,191.82,191.77,17.20941475]
[1730943647208,16.1799,191.82,191.79,17.20941475]
[1730943647405,17.20941475,191.86,191.79,17.20941475]
[1730943647808,17.30941475,191.86,191.79,17.20941475]
[1730943648019,17.20941475,191.85,191.78,17.20941475]
[1730943648522,17.20941475,191.84,191.77,17.20941475]
[1730943648908,17.20941475,191.85,191.78,17.20941475]
[1730943649302,17.20941475,191.83,191.77,17.20941475]
[1730943649520,17.20941475,191.85,191.79,17.20941475]
[1730943649704,17.20941475,191.8,191.62,5.38710745]
[1730943650007,17.20941475,191.77,191.7,17.20941475]
[1730943650198,0.1,191.79,191.62,17.20941475]
[1730943650417,17.20941475,191.79,191.72,17.20941475]
[1730943650930,17.20941475,191.8,191.61,14.7672]
[1730943651233,22.5286,191.79,191.73,17.20941475]
[1730943651395,39.73801475,191.79,191.72,17.20941475]
[1730943651601,17.20941475,191.78,191.72,17.20941475]
[1730943652507,17.30941475,191.77,191.7,17.20941475]
[1730943652709,17.20941475,191.78,191.71,17.20941475]
[1730943653321,22.5286,191.79,191.73,17.20941475]
[1730943653508,22.5286,191.79,191.74,17.20941475]
[1730943653706,22.5286,191.79,191.73,17.20941475]
[1730943654206,39.73801475,191.79,191.72,17.20941475]
[1730943654401,5.40717105,191.82,191.74,17.20941475]
[1730943654719,22.7167,191.84,191.64,0.22549]
[1730943654720,39.82611475,191.84,191.77,17.20941475]
[1730943655030,17.20941475,191.83,191.76,17.20941475]
[1730943655325,22.6167,191.84,191.79,17.20941475]
[1730943655826,22.6167,191.84,191.78,17.20941475]
[1730943656029,39.82611475,191.84,191.78,17.20941475]
[1730943656440,17.20941475,191.83,191.76,17.20941475]
[1730943657422,17.20941475,191.82,191.76,17.20941475]
[1730943657628,17.20941475,191.83,191.76,17.20941475]
[1730943658532,17.20941475,191.83,191.77,17.20941475]
[1730943659912,39.82611475,191.84,191.77,17.20941475]
[1730943660343,17.20941475,191.83,191.76,17.20941475]
[1730943660834,22.6167,191.84,191.76,17.20941475]
[1730943660835,17.20941475,191.82,191.76,17.20941475]
[1730943661534,17.20941475,191.8,191.73,17.20941475]
[1730943661744,0.2,191.83,191.64,0.22549]
[1730943661745,17.20941475,191.81,191.74,17.20941475]
[1730943662045,6.3343,191.89,191.8,17.33490475]
[1730943662352,23.54371475,191.89,191.83,17.20941475]
[1730943662511,6.3343,191.89,191.83,17.20941475]